Cogmind - Beta 13 @@@ ROGUE MODE // 2024.03.21 @ 23:47:43 Player: Yuba Result: Destroyed by G-47 Trooper with Particle Gun Performance ------------- Evolutions (1) 500 Regions Visited (2) 400 Robots Destroyed (31) 155 Value Destroyed (809) 809 Prototype IDs (0) 0 Alien Tech Used (0) 0 Bonus (0) 0 TOTAL SCORE: 1864 Bonus ------- None Cogmind --------- Core Integrity 0/400 Matter 121/300 Energy 100/100 System Corruption 9% Temperature Cool (9) Movement Core (750) Ox14 Location -9/Materials Parts ------- > --- POWER (1) -------- (None) > --- PROPULSION (4) --- (None) > --- UTILITY (2) ------ High-capacity Storage Unit > --- WEAPON (2) ------- Heavy Assault Rifle > --- INVENTORY (20) --- Light Treads Light Treads Light Treads Medium Matter Pod (100) Signal Interpreter Terrain Scanner Faulty Improved EM Shotgun Beam Rifle Improved Light Cannon Grenade Launcher Peak State ------------ > --- POWER ------------ Ion Engine > --- PROPULSION ------- Light Treads Light Treads Light Treads Light Treads > --- UTILITY ---------- High-capacity Storage Unit Targeting Computer > --- WEAPON ----------- Assault Rifle Improved Light Cannon > --- INVENTORY -------- Ion Engine Ion Engine Medium Matter Pod Signal Interpreter Terrain Scanner Improved EM Shotgun Beam Rifle Heavy Assault Rifle Heavy Assault Rifle Heavy Assault Rifle Heavy Assault Rifle Improved Light Cannon Grenade Launcher [Rating: 12] Favorites ----------- Power Ion Engine Engine Ion Engine Propulsion Aluminum Leg Treads Light Treads Leg Aluminum Leg Utility High-capacity Storage Unit Storage High-capacity Storage Unit Processor Targeting Computer Weapon Assault Rifle Ballistic Gun Assault Rifle Ballistic Cannon Improved Light Cannon Build | -11 -10 -9 ------- Run | Yrd Mat Mat Slots Evolved 2 | . . 2 Power . | . . . Propulsion 2 | . . 2 Utility . | . . . Weapon . | . . . Parts Attached 26 | 7 5 14 Power 4 | 1 1 2 Engine 4 | 1 1 2 Core . | . . . Reactor . | . . . Propulsion 10 | 2 . 8 Treads 4 | . . 4 Leg 6 | 2 . 4 Wheel . | . . . Hover . | . . . Flight . | . . . Utility 3 | 1 2 . Device . | . . . Storage 2 | 1 1 . Processor 1 | . 1 . Hackware . | . . . Protection . | . . . Artifact . | . . . Weapon 9 | 3 2 4 Energy Gun . | . . . Energy Cannon . | . . . Ballistic Gun 8 | 3 1 4 Ballistic Cannon 1 | . 1 . Launcher . | . . . Special Weapon . | . . . Impact Weapon . | . . . Slashing Weapon . | . . . Piercing Weapon . | . . . Special Melee Weapon . | . . . Unidentified Prototypes . | . . . Parts Lost 16 | . 1 15 Power 3 | . . 3 Propulsion 6 | . . 6 Utility 1 | . . 1 Weapon 6 | . 1 5 Highest Loss Streak 12 | . 1 12 To Critical Strikes . | . . . Average Slot Usage (%) 89 | . 94 85 Engine 11 | . 14 9 Treads 10 | . . 19 Leg 20 | . 28 13 Storage 12 | . 14 11 Processor 9 | . 9 9 Ballistic Gun 18 | . 27 11 Ballistic Cannon 5 | . . 9 Naked Turns . | . . . Heaviest Build 51 | 13 51 51 Greatest Support 80 | 20 20 80 Greatest Overweight (x) 16 | . 2 16 Average Overweight (x) . | . . . Largest Inventory Capacity 20 | 8 20 20 Average Capacity 17 | 7 16 20 Most Carried 16 | 4 9 16 Average Carried 8 | 2 7 10 Final Capacity 20 | 8 20 20 Final Carried 10 | 4 8 10 Class Distribution -------------------- 100% | Mutant Dominant Class ---------------- Mutant | -10/Materials Mutant | -9/Materials Resources | -11 -10 -9 ----------- Run | Yrd Mat Mat Matter Collected 757 | 243 252 262 Remotely . | . . . Salvage Created 896 | . 206 690 Parts 72 | . 21 51 Haulers Intercepted . | . . . Recyclers Shooed 1 | . . 1 Parts Field Recycled . | . . . Retrieved Matter . | . . . Parts Self-Destructed . | . . . Prevented . | . . . Kills | -11 -10 -9 ------- Run | Yrd Mat Mat Combat Hostiles Destroyed 25 | . 9 16 Guns 18 | . 9 9 Cannons 7 | . . 7 Classes Destroyed 8 | . 3 5 Worker 1 | . 1 . Builder 1 | . . 1 Recycler 1 | . . 1 Watcher 3 | . . 3 Swarmer 8 | . 7 1 Grunt 11 | . 2 9 Brawler 2 | . . 2 Sentry 4 | . . 4 Best Kill Streak 10 | . 4 10 Combat Bots Only 5 | . 4 5 Max Kills in Single Turn 2 | . 2 2 Gunslinging 1 | . 1 . Exploded . | . . . Melee . | . . . Uniques/NPCs Destroyed . | . . . Combat | -11 -10 -9 -------- Run | Yrd Mat Mat Hostile Shots Fired 315 | . 74 241 Missed 91 | . 20 71 Damage Taken 2590 | . 469 2121 Core 515 | . 113 402 Absorbed by Shields . | . . . Core Remaining (%) 77 | 100 54 . Volleys Fired 84 | . 25 59 Largest 2 | . 2 2 Hottest 59 | . 40 59 Shots Fired 156 | . 50 106 Gun 118 | . 50 68 Cannon 38 | . . 38 Launcher . | . . . Special . | . . . Kinetic 156 | . 50 106 Thermal . | . . . Explosive . | . . . Electromagnetic . | . . . Robot Hit Streak 9 | . 6 9 Robot Miss Streak 3 | . 2 3 Penetration Max . | . . . Secondary Targets 6 | . 4 2 Max Gunslinging Chain 1 | . 1 1 Shots Hit Robots 96 | . 27 69 Core Hits 45 | . 13 32 Critical Kills 2 | . 1 1 Critical Parts Destroyed 1 | . 1 . Critical Strikes 4 | . 2 2 Destroy 4 | . 2 2 Melee Attacks . | . . . Impact . | . . . Slashing . | . . . Piercing . | . . . Sneak Attacks . | . . . Combat Hostiles . | . . . Follow-up Attacks . | . . . Damage Inflicted 1548 | . 289 1259 Guns 889 | . 289 600 Cannons 659 | . . 659 Explosions . | . . . Melee . | . . . Ramming . | . . . Kinetic 1548 | . 289 1259 Thermal . | . . . Explosive . | . . . Electromagnetic . | . . . Impact . | . . . Slashing . | . . . Piercing . | . . . Highest Corruption 9 | . . 9 Average Corruption 8 | . . 8 Corruption Purged . | . . . Corruption Blocked . | . . . Effects 4 | . . 4 Message Errors 1 | . . 1 Energy Discharges 2 | . . 2 Misfires 1 | . . 1 Overload Shots . | . . . Overflow Damage 6 | . . 6 Projectiles 6 | . . 6 Explosions . | . . . Melee . | . . . Knockbacks 3 | . . 3 Impact . | . . . Kinetic 3 | . . 3 Secondary . | . . . Self-Inflicted Damage . | . . . Shots . | . . . Rammed . | . . . Targets Rammed . | . . . Kicked . | . . . Crushed . | . . . Highest Temperature 36 | . 12 36 Average Temperature 12 | . 7 13 Received Heat Transfer 918 | . 54 864 Siege Activations . | . . . Robots Corrupted . | . . . Combat Hostiles . | . . . Parts Fried . | . . . Impact Corruptions . | . . . Robots Melted . | . . . Combat Hostiles . | . . . Parts Melted . | . . . Heat Transferred . | . . . Parts Sabotaged . | . . . Parts Stolen . | . . . Parts Stripped . | . . . Power Chain Reactions . | . . . Alert | -11 -10 -9 ------- Run | Yrd Mat Mat Peak Influence 366 | . 170 366 Initial 63 | . . 63 Average 91 | . 69 122 Maximum Alert Level 1 | . . 1 Low Security (%) 89 | 100 100 79 Level 1 10 | . . 20 Level 2 . | . . . Level 3 . | . . . Level 4 . | . . . Level 5 . | . . . High Security . | . . . Max Security . | . . . Squads Dispatched 3 | . 3 . Investigation 1 | . 1 . Extermination . | . . . Reinforcement 2 | . 2 . Assault . | . . . Garrison . | . . . Intercept . | . . . Searches Triggered . | . . . Construction Impeded . | . . . Haulers Reinforced . | . . . Active Scanning Responses . | . . . Cargo Convoy Interrupts . | . . . Stealth | -11 -10 -9 --------- Run | Yrd Mat Mat Distress Signals 3 | . 1 2 Communications Jammed . | . . . Distress Signals . | . . . Times Spotted 45 | . 18 27 Peak Tracking Total 8 | . 4 8 Tactical Retreats 5 | . 4 1 Traps | -11 -10 -9 ------- Run | Yrd Mat Mat Traps Triggered 1 | . 1 . Indirectly . | . . . Trap Hack Attempts . | . . . Triggered . | . . . Disarmed . | . . . Reprogrammed . | . . . Reused . | . . . Traps Extracted . | . . . Installed . | . . . Triggered . | . . . Machines | -11 -10 -9 ---------- Run | Yrd Mat Mat Machines Disabled 3 | . . 3 Max in Single Turn 1 | . . 1 Machines Repaired . | . . . Machines Dismantled . | . . . Machines Sabotaged . | . . . Overloaded Fab Kills . | . . . Hacking | -11 -10 -9 --------- Run | Yrd Mat Mat Machines Accessed 1 | . 1 . Terminals . | . . . Fabricators . | . . . Repair Stations . | . . . Recycling Units 1 | . 1 . Scanalyzers . | . . . Garrison Access . | . . . Total Hacks 1 | . 1 . Successful . | . . . Failed 1 | . 1 . Catastrophic . | . . . Database Lockouts . | . . . Manual . | . . . Terminals . | . . . Fabricators . | . . . Repair Stations . | . . . Recycling Units 1 | . 1 . Scanalyzers . | . . . Garrison Access . | . . . Terminal Hacks . | . . . Fabricator Hacks . | . . . Repair Station Hacks . | . . . Recycling Unit Hacks . | . . . Scanalyzer . | . . . Garrison Access Hacks . | . . . Unauthorized Hacks . | . . . Terminals . | . . . Fabricators . | . . . Repair Stations . | . . . Recycling Units . | . . . Scanalyzers . | . . . Garrison Access . | . . . Data Cores Recovered . | . . . Used . | . . . Hacking Detections 1 | . 1 . Full Trace Events . | . . . Feedback Events . | . . . Feedback Blocked . | . . . Robot Schematics Acquired . | . . . Robots Built . | . . . Authchips . | . . . Time . | . . . Total Robot Build Rating . | . . . Part Schematics Acquired . | . . . Parts Built . | . . . Authchips . | . . . Time . | . . . Total Part Build Rating . | . . . Parts Repaired . | . . . Time . | . . . Parts Recycled . | . . . Recycled Matter . | . . . Retrieved Matter . | . . . Retrieved Components . | . . . Parts Scanalyzed . | . . . Part Schematics Acquired . | . . . Parts Damaged . | . . . Bothacking | -11 -10 -9 ------------ Run | Yrd Mat Mat Used RIF Installer . | . . . Robots Hacked . | . . . Non-combat . | . . . Combat . | . . . Robot Hacks Applied . | . . . Relay Couplers Released . | . . . Fabnet Peak Effective % . | . . . Robots Rewired . | . . . Allies Hacked . | . . . Hacks Repelled . | . . . Allies | -11 -10 -9 -------- Run | Yrd Mat Mat Total Allies . | . . . Largest Group . | . . . Highest-Rated Group . | . . . Highest-Rated Ally . | . . . Total Orders . | . . . Ally Attacks . | . . . Total Damage . | . . . Kills . | . . . Allies Corrupted . | . . . Allies Melted . | . . . Intel | -11 -10 -9 ------- Run | Yrd Mat Mat Robot Analysis Total . | . . . Derelict Logs Recovered . | . . . Drone Launches . | . . . Drone Recoveries . | . . . Exploration | -11 -10 -9 ------------- Run | Yrd Mat Mat Turns Passed 1485 | 89 653 743 Spaces Moved 653 | 69 307 277 Core 16 | 15 . 1 Treads 185 | . . 185 Legs 452 | 54 307 91 Wheels . | . . . Hover . | . . . Flight . | . . . Fastest Speed 50 | 50 120 160 Average Speed 182 | 104 185 198 Slowest Speed 850 | 120 260 850 Overloaded Moves . | . . . Propulsion Burnouts . | . . . Robots Hopped . | . . . Cave-ins Triggered . | . . . Exploration Rate (%) 30 | 3 60 27 Regions Visited 2 Branch Regions . Pre-discovered Areas . | . . . Known Exits Taken . | . . . Unknown Exits Taken 2 | 1 1 . Scrap Searched . | . . . Spaces Dug . | . . . Terrain Destroyed . | . . . Melee . | . . . Projectile . | . . . AOE . | . . . Terrain Rammed . | . . . Walls Destroyed . | . . . Machines Disabled . | . . . Actions | -11 -10 -9 --------- Run | Yrd Mat Mat Total 795 | 85 346 364 Wait . | . . . Move 651 | 68 306 277 Hop . | . . . Pick Up 31 | 10 8 13 Fast Attach . | . . . Attach 18 | 6 2 10 Detach . | . . . Swap 8 | 1 3 4 Drop 3 | . 2 1 Fire 84 | . 25 59 Melee . | . . . Ram . | . . . Kick . | . . . Crush . | . . . Escape Stasis . | . . . Rewire . | . . . Trap . | . . . Miscellaneous . | . . . Route ------- -11/Scrapyard -10/Materials -9/Materials History --------- Turn | Location | Event 2 | -11/Scrapyard | Met Revision 17 7 | -11/Scrapyard | Discovered new exit (range 13) 90 | -11/Scrapyard | Entered Materials 334 | -10/Materials | Build established: Mutant 682 | -10/Materials | Discovered new exit (range 7) 743 | -10/Materials | Entered another Materials area 743 | -9/Materials | Evolved 2 slots: Propulsion x2 1444 | -9/Materials | Core integrity fell below 50% 1477 | -9/Materials | Core integrity fell below 20% 1486 | -9/Materials | Destroyed by G-47 Trooper with Particle Gun Last Messages --------------- K-01 Serf collects debris. K-01 Serf destroyed. K-01 Serf collects debris. G-34 Mercenary destroyed. K-01 Serf collects debris. Hvy. Assault Rifle destroyed. K-01 Serf collects debris. G-34 Mercenary destroyed. Switching to secondary target: G-47 Trooper. K-01 Serf collects debris. G-34 Mercenary destroyed. K-01 Serf collects debris. Hvy. Assault Rifle destroyed. K-01 Serf collects debris. System corrupted: FCS attempts to trigger Hvy. Assault Rifle. System corrupted: Hvy. Assault Rifle misfires. K-01 Serf collects debris. S-10 Pest destroyed. K-01 Serf collects debris. Map ----- +----------------------------------------------------+ | ?????????????????????????????????????????????????? | | ?????????????????????????????????????????????????? | | ?????????????????????????????????????????????????? | | ?????????????????????????????????????????????????? | | ?????????????????????????????????????????????????? | | ?????????????????????????????????????????????????? | | ?????????????????????????????????????????????????? | | ?????????????????????????????????????????????????? | | ?????????????????????????????????????????????????? | | ?????????????????????????????????????????????????? | | ????????????????????????? ?????????????????????? | | ????????????????????????? ???????????????????? | | ????????????????????????? ??????????????????? | | ????????????????????????? ^^??? ??????????????? | | ????????????????????????? g s ""? ????????????? | | ????????????????????????? "" ????????????? | | ????????????????????????#[%= "" "????????????? | | ????????????????????????/w* k ?????????????? | | ????????????????????????# %! = ??????????????? | | ????????????????????????#== !%###?????????????? | | ????????????????????????#!t=%* =+ ??????????????? | | ????????????????????????#s!!k%= #???????????????? | | ????#####################%== #???????????????? | | ???? !!% #???????????????? | | ???? =%% #???????????????? | | ??? ^ ^ *k@% #???????????????? | | ???? % %k % #???????????????? | | ??????"" ! % !% " " """ #???????????????? | | ?????"""" =%!g ^%g= " """""" ????????????? | | ??"" """ a = " " """ ?????????? | | ? *%! a ? ??????????? | | ? ! [%[ ??????????????? | | ? =% #??????????????? | | ???#############+##################??????????????? | | ???????????# #???????????????????????????? | | ??????????## """ T #???????????????????????????? | | ??????????# """ #???????????????????????????? | | ??????????## """ #???????????????????????????? | | ???????????# #???????????????????????????? | | ???????????# #???????????????????????????? | | ???????????# #???????????????????????????? | | ???????????# #???????????????????????????? | | #######????####+######???????????????????????????? | | #???????#!#????????????????????????????????? | | #???????#%#????????????????????????????????? | | #???????#!#????????????????????????????????? | | #???????#!#????????????????????????????????? | | #########%#????????????????????????????????? | | + ==!#????????????????????????????????? | | #########|#????????????????????????????????? | +----------------------------------------------------+ Best States ------------- Heat Dissipation 28 Energy Generation 10 Energy Capacity 250 Matter Stores 300 Matter Capacity 300 Sight Range 16 Terrain Scan Density 10 Evasion (%) 55 Targeting Accuracy 5 Recoil Reduction 4 Item Schematics ----------------- None Robot Schematics ------------------ None Fabricated ------------ Nothing Alien Tech Used ----------------- None Achievements -------------- None Challenges ------------ None Game ------ Seed DisruptorBlastLog Manual? 0 Play Time 00:14:44 Cumulative 6.5 hours Start 2024.03.21 @ 23:35:44 End 2024.03.21 @ 23:47:43 Sessions 1 Manual Loads 0 Difficulty Rogue Special Mode None Game No. 7 Rogue 4 Adventurer 3 Explorer 0 Win Type - Total 0 Types 0/0/0/0/0/0/0/0/0 Lore% 4 Gallery% 11 Achievement% 11 Wizard Run 0 Options --------- Layout 1 ASCII 0 Keyboard 0 Movement Arrows Keybinds 0 Fullscreen 1 Font 24/Smallcaps Map View 50x35 Zoom Use 0% Tactical HUD 0 Map Filters NONE Filters NONE Steam 1 RUN: 4e39919e-844a-4f3d-83ad-201a08d6802b